[Event "Late-Titled-Tuesday-Blitz-June-25-2024"]
[Site "Chess.com"]
[Date "2024.06.25"]
[Round "1"]
[White "igorkovalenko"]
[Black "Cheer_Down"]
[Result "1-0"]
[WhiteElo "2994"]
[BlackElo "2509"]
[TimeControl "180+1"]
[EndTime "14:08:12 PDT"]
[Termination "igorkovalenko won by resignation"]

1. d4 {[%clk 0:02:29.3]} 1... d5 {[%clk 0:02:59.3]} 2. Bf4 {[%clk 0:02:29.1]}
2... Nf6 {[%clk 0:02:58.4]} 3. e3 {[%clk 0:02:29.7]} 3... e6 {[%clk 0:02:58.2]}
4. c3 {[%clk 0:02:16.3]} 4... c5 {[%clk 0:02:58.2]} 5. Nd2 {[%clk 0:02:16.4]}
5... Nc6 {[%clk 0:02:58.4]} 6. Ngf3 {[%clk 0:02:16.3]} 6... Bd6 {[%clk
0:02:58.3]} 7. Bg3 {[%clk 0:02:15.7]} 7... O-O {[%clk 0:02:57.7]} 8. Bb5 {[%clk
0:02:14.8]} 8... Ne7 {[%clk 0:02:50.2]} 9. Bd3 {[%clk 0:02:07]} 9... b6 {[%clk
0:02:47]} 10. Ne5 {[%clk 0:02:05]} 10... Bb7 {[%clk 0:02:45.7]} 11. Bh4 {[%clk
0:01:55.7]} 11... Nf5 {[%clk 0:02:43.2]} 12. Bxf5 {[%clk 0:01:48.4]} 12... exf5
{[%clk 0:02:40.9]} 13. O-O {[%clk 0:01:47.3]} 13... Be7 {[%clk 0:02:34.2]} 14.
Qc2 {[%clk 0:01:40.1]} 14... Ne4 {[%clk 0:02:27.7]} 15. Bxe7 {[%clk 0:01:39.9]}
15... Qxe7 {[%clk 0:02:28.1]} 16. Rfe1 {[%clk 0:01:36.1]} 16... f6 {[%clk
0:02:18.6]} 17. Nd3 {[%clk 0:01:36.3]} 17... Rac8 {[%clk 0:02:07.4]} 18. Nf1
{[%clk 0:01:34.7]} 18... Ba6 {[%clk 0:02:01]} 19. Nf4 {[%clk 0:01:34.5]} 19...
Bb7 {[%clk 0:01:58.5]} 20. f3 {[%clk 0:01:33.8]} 20... Nd6 {[%clk 0:01:55.7]}
21. Rad1 {[%clk 0:01:31.3]} 21... Qf7 {[%clk 0:01:54.1]} 22. Ng3 {[%clk
0:01:28.5]} 22... g6 {[%clk 0:01:53.4]} 23. Qa4 {[%clk 0:01:25.1]} 23... Bc6
{[%clk 0:01:49.1]} 24. Qb3 {[%clk 0:01:20.6]} 24... Nc4 {[%clk 0:01:40.6]} 25.
Kf2 {[%clk 0:01:08.4]} 25... Rfe8 {[%clk 0:01:39.6]} 26. Nd3 {[%clk 0:01:04.4]}
26... Ba8 {[%clk 0:01:31.9]} 27. Nf1 {[%clk 0:01:00.1]} 27... Kg7 {[%clk
0:01:24.1]} 28. Qc2 {[%clk 0:00:59.3]} 28... Bb7 {[%clk 0:01:19.3]} 29. Nf4
{[%clk 0:00:59.1]} 29... Rcd8 {[%clk 0:01:11.3]} 30. a4 {[%clk 0:00:59.2]} 30...
Qc7 {[%clk 0:01:10.6]} 31. b3 {[%clk 0:00:59.1]} 31... Nxe3 {[%clk 0:01:10.1]}
32. Rxe3 {[%clk 0:00:57.6]} 32... Qxf4 {[%clk 0:01:09.7]} 33. g3 {[%clk
0:00:52.5]} 33... Qc7 {[%clk 0:01:04.2]} 34. Qd2 {[%clk 0:00:51.8]} 34... Rxe3
{[%clk 0:00:58.5]} 35. Qxe3 {[%clk 0:00:52.7]} 35... Ba6 {[%clk 0:00:50.3]} 36.
Nd2 {[%clk 0:00:52.3]} 36... Kf7 {[%clk 0:00:44.9]} 37. Re1 {[%clk 0:00:52.2]}
37... Bc8 {[%clk 0:00:32.5]} 38. Qh6 {[%clk 0:00:36.7]} 38... Kg8 {[%clk
0:00:30.2]} 39. Qe3 {[%clk 0:00:36.9]} 39... Kf7 {[%clk 0:00:29.7]} 40. h4
{[%clk 0:00:36.1]} 40... cxd4 {[%clk 0:00:29.1]} 41. Qxd4 {[%clk 0:00:36.2]}
41... Qc5 {[%clk 0:00:29.2]} 42. Qxc5 {[%clk 0:00:32]} 42... bxc5 {[%clk
0:00:29.2]} 43. b4 {[%clk 0:00:32.7]} 43... d4 {[%clk 0:00:28.5]} 44. Nb3 {[%clk
0:00:28.2]} 44... cxb4 {[%clk 0:00:23.1]} 45. cxb4 {[%clk 0:00:27.3]} 45... Bd7
{[%clk 0:00:18.8]} 46. Nc5 {[%clk 0:00:27.2]} 46... Bc6 {[%clk 0:00:18.8]} 47.
Rd1 {[%clk 0:00:27]} 47... Rd5 {[%clk 0:00:16.9]} 48. a5 {[%clk 0:00:25.9]}
48... Bb5 {[%clk 0:00:16.9]} 49. Rd2 {[%clk 0:00:25.8]} 49... a6 {[%clk
0:00:17.2]} 50. f4 {[%clk 0:00:23]} 50... h6 {[%clk 0:00:17]} 51. Nb3 {[%clk
0:00:23.2]} 51... d3 {[%clk 0:00:16.3]} 52. Ke3 {[%clk 0:00:23.8]} 52... g5
{[%clk 0:00:15.8]} 53. Nd4 {[%clk 0:00:23.2]} 53... gxh4 {[%clk 0:00:14.6]} 54.
gxh4 {[%clk 0:00:23.3]} 54... Bc4 {[%clk 0:00:14.4]} 55. Nf3 {[%clk 0:00:20.1]}
55... Rd7 {[%clk 0:00:13.7]} 56. h5 {[%clk 0:00:18.7]} 56... Bb5 {[%clk
0:00:13.3]} 57. Nd4 {[%clk 0:00:19]} 57... Re7+ {[%clk 0:00:13.3]} 58. Kf2
{[%clk 0:00:19]} 58... Bc4 {[%clk 0:00:13.7]} 59. Nc6 {[%clk 0:00:17.6]} 59...
Re4 {[%clk 0:00:13.3]} 60. Kf3 {[%clk 0:00:17.7]} 60... Re8 {[%clk 0:00:11.4]}
61. Kf2 {[%clk 0:00:17.8]} 61... Re4 {[%clk 0:00:10.9]} 62. Nd8+ {[%clk
0:00:15.8]} 62... Ke8 {[%clk 0:00:09.8]} 63. Nb7 {[%clk 0:00:16.7]} 63... Re2+
{[%clk 0:00:10]} 64. Rxe2+ {[%clk 0:00:16.8]} 64... dxe2 {[%clk 0:00:10.9]} 65.
Nd6+ {[%clk 0:00:16.9]} 65... Ke7 {[%clk 0:00:09.4]} 66. Nxc4 {[%clk 0:00:17.8]}
1-0

[Event "Late-Titled-Tuesday-Blitz-June-25-2024"]
[Site "Chess.com"]
[Date "2024.06.25"]
[Round "1"]
[White "tarno17"]
[Black "Flaccidmoves"]
[Result "1/2-1/2"]
[WhiteElo "2177"]
[BlackElo "2550"]
[TimeControl "180+1"]
[EndTime "14:08:14 PDT"]
[Termination "Game drawn - insufficient material"]

1. e4 {[%clk 0:02:56.9]} 1... g6 {[%clk 0:03:00.4]} 2. d4 {[%clk 0:02:52.8]}
2... Bg7 {[%clk 0:03:00.6]} 3. Nc3 {[%clk 0:02:52.1]} 3... d6 {[%clk 0:03:01.1]}
4. Be3 {[%clk 0:02:52.3]} 4... Nf6 {[%clk 0:03:01.6]} 5. Qd2 {[%clk 0:02:52]}
5... a6 {[%clk 0:02:59.9]} 6. O-O-O {[%clk 0:02:49.5]} 6... b5 {[%clk
0:02:57.3]} 7. f3 {[%clk 0:02:44]} 7... Bb7 {[%clk 0:02:54.1]} 8. g4 {[%clk
0:02:33.2]} 8... h5 {[%clk 0:02:49.2]} 9. g5 {[%clk 0:02:20.4]} 9... Nfd7 {[%clk
0:02:49.5]} 10. Bg2 {[%clk 0:02:14.2]} 10... b4 {[%clk 0:02:40.8]} 11. Nce2
{[%clk 0:02:08.6]} 11... a5 {[%clk 0:02:36.7]} 12. f4 {[%clk 0:02:01]} 12... Na6
{[%clk 0:02:26.8]} 13. d5 {[%clk 0:01:37.9]} 13... Nac5 {[%clk 0:02:23.7]} 14.
Bd4 {[%clk 0:01:34.1]} 14... Bxd4 {[%clk 0:02:20.9]} 15. Qxd4 {[%clk 0:01:33.8]}
15... O-O {[%clk 0:02:21.2]} 16. Ng3 {[%clk 0:01:13.1]} 16... c6 {[%clk
0:02:09.4]} 17. Bf3 {[%clk 0:00:59.4]} 17... cxd5 {[%clk 0:02:03.5]} 18. exd5
{[%clk 0:00:55.5]} 18... Rc8 {[%clk 0:01:55.8]} 19. Kb1 {[%clk 0:00:35.3]} 19...
e5 {[%clk 0:01:33.4]} 20. dxe6 {[%clk 0:00:30.8]} 20... Nxe6 {[%clk 0:01:28.4]}
21. Qxd6 {[%clk 0:00:27.6]} 21... Qc7 {[%clk 0:01:10]} 22. Qxc7 {[%clk
0:00:22.6]} 22... Rxc7 {[%clk 0:01:10.9]} 23. Bxb7 {[%clk 0:00:22.5]} 23... Rxb7
{[%clk 0:01:11.8]} 24. N1e2 {[%clk 0:00:20.8]} 24... Rc8 {[%clk 0:01:04.4]} 25.
h4 {[%clk 0:00:20.2]} 25... Nb6 {[%clk 0:00:57.6]} 26. b3 {[%clk 0:00:19.2]}
26... a4 {[%clk 0:00:56.5]} 27. f5 {[%clk 0:00:18.8]} 27... Nc5 {[%clk
0:00:52.4]} 28. fxg6 {[%clk 0:00:17.8]} 28... fxg6 {[%clk 0:00:52.5]} 29. Rd6
{[%clk 0:00:17.8]} 29... Kg7 {[%clk 0:00:51.3]} 30. Rf1 {[%clk 0:00:10.9]} 30...
Nbd7 {[%clk 0:00:40.7]} 31. Nd4 {[%clk 0:00:08.2]} 31... a3 {[%clk 0:00:36.2]}
32. Nge2 {[%clk 0:00:03.9]} 32... Rf8 {[%clk 0:00:31.3]} 33. Rxf8 {[%clk
0:00:03.4]} 33... Kxf8 {[%clk 0:00:32.2]} 34. Nf4 {[%clk 0:00:03.9]} 34... Ne5
{[%clk 0:00:29.7]} 35. Nde6+ {[%clk 0:00:03.7]} 35... Nxe6 {[%clk 0:00:28.3]}
36. Rxe6 {[%clk 0:00:04.1]} 36... Rd7 {[%clk 0:00:26.3]} 37. Nd3 {[%clk
0:00:04.6]} 37... Nxd3 {[%clk 0:00:26.1]} 38. cxd3 {[%clk 0:00:05.5]} 38... Kg7
{[%clk 0:00:23.9]} 39. Re3 {[%clk 0:00:05]} 39... Rd4 {[%clk 0:00:23.9]} 40. Rh3
{[%clk 0:00:05.7]} 40... Rg4 {[%clk 0:00:24.3]} 41. Rh2 {[%clk 0:00:05]} 41...
Rg1+ {[%clk 0:00:24.6]} 42. Kc2 {[%clk 0:00:05.6]} 42... Ra1 {[%clk 0:00:25.3]}
43. Rd2 {[%clk 0:00:03.5]} 43... Rxa2+ {[%clk 0:00:25.4]} 44. Kc1 {[%clk
0:00:04]} 44... Ra1+ {[%clk 0:00:25.4]} 45. Kc2 {[%clk 0:00:04.2]} 45... Rh1
{[%clk 0:00:24.1]} 46. d4 {[%clk 0:00:04.1]} 46... Kf7 {[%clk 0:00:21.8]} 47.
Kd3 {[%clk 0:00:04.2]} 47... Ke7 {[%clk 0:00:21.1]} 48. Kc4 {[%clk 0:00:04.3]}
48... Rxh4 {[%clk 0:00:16.8]} 49. Kxb4 {[%clk 0:00:04.2]} 49... a2 {[%clk
0:00:17.1]} 50. Rxa2 {[%clk 0:00:04.4]} 50... Rxd4+ {[%clk 0:00:17.6]} 51. Kc5
{[%clk 0:00:03.8]} 51... Rd1 {[%clk 0:00:17.5]} 52. Ra6 {[%clk 0:00:03.7]} 52...
Kf7 {[%clk 0:00:16.3]} 53. b4 {[%clk 0:00:03]} 53... h4 {[%clk 0:00:16.8]} 54.
b5 {[%clk 0:00:03]} 54... h3 {[%clk 0:00:17.3]} 55. Ra7+ {[%clk 0:00:02.7]}
55... Ke6 {[%clk 0:00:16.7]} 56. Rh7 {[%clk 0:00:02.8]} 56... Kf5 {[%clk
0:00:14.5]} 57. Rxh3 {[%clk 0:00:01.8]} 57... Kxg5 {[%clk 0:00:15]} 58. b6
{[%clk 0:00:02.4]} 58... Rb1 {[%clk 0:00:14.5]} 59. Kc6 {[%clk 0:00:02.6]} 59...
Kf4 {[%clk 0:00:14.3]} 60. Kc7 {[%clk 0:00:02.2]} 60... g5 {[%clk 0:00:14.7]}
61. b7 {[%clk 0:00:02.2]} 61... g4 {[%clk 0:00:15.4]} 62. Rh7 {[%clk 0:00:02.1]}
62... g3 {[%clk 0:00:15.9]} 63. b8=Q {[%clk 0:00:02.3]} 63... Rxb8 {[%clk
0:00:15.1]} 64. Kxb8 {[%clk 0:00:03.2]} 64... g2 {[%clk 0:00:15.7]} 65. Rf7+
{[%clk 0:00:03.8]} 65... Kg3 {[%clk 0:00:15.8]} 66. Rg7+ {[%clk 0:00:04.5]}
66... Kf2 {[%clk 0:00:16.3]} 67. Rxg2+ {[%clk 0:00:04.9]} 67... Kxg2 {[%clk
0:00:16.6]} 1/2-1/2

[Event "Late-Titled-Tuesday-Blitz-June-25-2024"]
[Site "Chess.com"]
[Date "2024.06.25"]
[Round "1"]
[White "Navyblue1"]
[Black "VaglioSagan"]
[Result "0-1"]
[WhiteElo "2175"]
[BlackElo "2560"]
[TimeControl "180+1"]
[EndTime "14:08:15 PDT"]
[Termination "VaglioSagan won on time"]

1. d4 {[%clk 0:02:59]} 1... d5 {[%clk 0:02:48.4]} 2. c4 {[%clk 0:02:59.3]} 2...
c6 {[%clk 0:02:48.3]} 3. cxd5 {[%clk 0:02:57.1]} 3... cxd5 {[%clk 0:02:49.2]} 4.
Nc3 {[%clk 0:02:53.4]} 4... Nf6 {[%clk 0:02:44.5]} 5. Bg5 {[%clk 0:02:51.9]}
5... Nc6 {[%clk 0:02:41.9]} 6. e3 {[%clk 0:02:50.1]} 6... a6 {[%clk 0:02:41.2]}
7. Bd3 {[%clk 0:02:46.3]} 7... e6 {[%clk 0:02:27.9]} 8. Nf3 {[%clk 0:02:37.7]}
8... Be7 {[%clk 0:02:23.4]} 9. O-O {[%clk 0:02:33.1]} 9... O-O {[%clk
0:02:23.3]} 10. h3 {[%clk 0:02:28.6]} 10... Bd7 {[%clk 0:02:18.1]} 11. Rc1
{[%clk 0:02:26.8]} 11... b5 {[%clk 0:02:16.9]} 12. Bb1 {[%clk 0:01:50.9]} 12...
Rc8 {[%clk 0:02:04.6]} 13. Re1 {[%clk 0:01:46.7]} 13... h6 {[%clk 0:01:47.5]}
14. Bxf6 {[%clk 0:01:37.2]} 14... Bxf6 {[%clk 0:01:48.4]} 15. e4 {[%clk
0:01:36.5]} 15... b4 {[%clk 0:01:06.6]} 16. Ne2 {[%clk 0:01:16.5]} 16... dxe4
{[%clk 0:01:05.2]} 17. Bxe4 {[%clk 0:01:17.4]} 17... Ne7 {[%clk 0:01:04.5]} 18.
Nf4 {[%clk 0:01:03.2]} 18... Bc6 {[%clk 0:00:55.3]} 19. Bxc6 {[%clk 0:00:58.9]}
19... Nxc6 {[%clk 0:00:54.3]} 20. Rc4 {[%clk 0:00:49.2]} 20... Nxd4 {[%clk
0:00:34.4]} 21. Rxd4 {[%clk 0:00:18.1]} 21... Bxd4 {[%clk 0:00:33.8]} 22. Qxd4
{[%clk 0:00:17.5]} 22... Qxd4 {[%clk 0:00:32.9]} 23. Nxd4 {[%clk 0:00:17.5]}
23... Rfd8 {[%clk 0:00:29.3]} 24. Nfe2 {[%clk 0:00:16.9]} 24... e5 {[%clk
0:00:28.6]} 25. Nf5 {[%clk 0:00:16]} 25... Kf8 {[%clk 0:00:27.7]} 26. Ne3 {[%clk
0:00:15.7]} 26... Rd2 {[%clk 0:00:27.5]} 27. b3 {[%clk 0:00:13.9]} 27... Rxa2
{[%clk 0:00:27.5]} 28. Ng3 {[%clk 0:00:13.8]} 28... Rb2 {[%clk 0:00:26]} 29. Ra1
{[%clk 0:00:13.2]} 29... Rc6 {[%clk 0:00:25.4]} 30. Ne4 {[%clk 0:00:11.9]} 30...
Rxb3 {[%clk 0:00:24.8]} 31. Nd5 {[%clk 0:00:07.2]} 31... f5 {[%clk 0:00:18.9]}
32. Nd2 {[%clk 0:00:05.7]} 32... Rd3 {[%clk 0:00:18.9]} 33. Nxb4 {[%clk
0:00:05.3]} 33... Rcd6 {[%clk 0:00:13.2]} 34. Nxd3 {[%clk 0:00:05.4]} 34... Rxd3
{[%clk 0:00:14.1]} 35. Nf3 {[%clk 0:00:05.5]} 35... e4 {[%clk 0:00:14.4]} 36.
Ne1 {[%clk 0:00:05.1]} 36... Rd6 {[%clk 0:00:13]} 37. Kf1 {[%clk 0:00:05]} 37...
Ke7 {[%clk 0:00:12.9]} 38. Ra5 {[%clk 0:00:05]} 38... g6 {[%clk 0:00:13.2]} 39.
Ke2 {[%clk 0:00:05.2]} 39... Rb6 {[%clk 0:00:13]} 40. Nc2 {[%clk 0:00:05.3]}
40... Kf6 {[%clk 0:00:13.1]} 41. Ne3 {[%clk 0:00:04.9]} 41... Kg5 {[%clk
0:00:12.6]} 42. g3 {[%clk 0:00:04.6]} 42... h5 {[%clk 0:00:11.9]} 43. Kf1 {[%clk
0:00:04.4]} 43... h4 {[%clk 0:00:11.8]} 44. Kg2 {[%clk 0:00:04.5]} 44... hxg3
{[%clk 0:00:11.7]} 45. Kxg3 {[%clk 0:00:04.8]} 45... Rb5 {[%clk 0:00:09.8]} 46.
Rxb5 {[%clk 0:00:03.8]} 46... axb5 {[%clk 0:00:10.7]} 47. Nd5 {[%clk 0:00:03.8]}
47... Kh5 {[%clk 0:00:09.3]} 48. Kf4 {[%clk 0:00:03.5]} 48... Kh4 {[%clk
0:00:08.4]} 49. Ne7 {[%clk 0:00:02.9]} 49... Kxh3 {[%clk 0:00:04.8]} 50. Nxg6
{[%clk 0:00:03]} 50... Kg2 {[%clk 0:00:02.4]} 51. Ke3 {[%clk 0:00:03.2]} 51...
b4 {[%clk 0:00:02]} 52. Ne5 {[%clk 0:00:03.3]} 52... Kf1 {[%clk 0:00:02.5]} 53.
Nc4 {[%clk 0:00:02.7]} 53... Kg2 {[%clk 0:00:03.2]} 54. Kf4 {[%clk 0:00:02.9]}
54... Kxf2 {[%clk 0:00:03.5]} 55. Kxf5 {[%clk 0:00:03.3]} 55... e3 {[%clk
0:00:04]} 56. Ke4 {[%clk 0:00:03.4]} 56... e2 {[%clk 0:00:04.4]} 57. Nb2 {[%clk
0:00:01.7]} 57... b3 {[%clk 0:00:03.3]} 58. Nd3+ {[%clk 0:00:01]} 58... Kf1
{[%clk 0:00:04]} 59. Kd4 {[%clk 0:00:01.2]} 59... b2 {[%clk 0:00:04.7]} 60. Nxb2
{[%clk 0:00:01]} 60... e1=Q {[%clk 0:00:05.4]} 61. Nd3 {[%clk 0:00:01.2]} 61...
Qd2 {[%clk 0:00:06.1]} 0-1

[Event "Late-Titled-Tuesday-Blitz-June-25-2024"]
[Site "Chess.com"]
[Date "2024.06.25"]
[Round "1"]
[White "yaguigor"]
[Black "Fore_Man"]
[Result "1/2-1/2"]
[WhiteElo "2554"]
[BlackElo "2188"]
[TimeControl "180+1"]
[EndTime "14:08:16 PDT"]
[Termination "Game drawn - insufficient material"]

1. Nf3 {[%clk 0:02:56.9]} 1... Nf6 {[%clk 0:03:00.2]} 2. c4 {[%clk 0:02:55.9]}
2... e6 {[%clk 0:03:00.3]} 3. Nc3 {[%clk 0:02:54.1]} 3... d5 {[%clk 0:03:00.9]}
4. d4 {[%clk 0:02:54.2]} 4... dxc4 {[%clk 0:03:00.9]} 5. e3 {[%clk 0:02:52.3]}
5... c5 {[%clk 0:03:01.1]} 6. Bxc4 {[%clk 0:02:52]} 6... Nc6 {[%clk 0:03:01.6]}
7. O-O {[%clk 0:02:50.9]} 7... cxd4 {[%clk 0:03:01.5]} 8. exd4 {[%clk 0:02:49]}
8... Be7 {[%clk 0:03:02]} 9. a3 {[%clk 0:02:45.8]} 9... O-O {[%clk 0:03:01.4]}
10. Qd3 {[%clk 0:02:45.7]} 10... Nd5 {[%clk 0:02:59.7]} 11. Bd2 {[%clk
0:02:40.2]} 11... b6 {[%clk 0:02:55.5]} 12. Rad1 {[%clk 0:02:37.9]} 12... Bb7
{[%clk 0:02:52.8]} 13. Rfe1 {[%clk 0:02:33.1]} 13... Na5 {[%clk 0:02:50.5]} 14.
Ba2 {[%clk 0:02:31.8]} 14... Rc8 {[%clk 0:02:45.3]} 15. Bb1 {[%clk 0:02:28.2]}
15... g6 {[%clk 0:02:43.4]} 16. Bh6 {[%clk 0:02:27.2]} 16... Re8 {[%clk
0:02:42.4]} 17. Ne4 {[%clk 0:02:27.3]} 17... Nf6 {[%clk 0:02:40.7]} 18. Nc3
{[%clk 0:02:19]} 18... Nc4 {[%clk 0:02:37]} 19. Re2 {[%clk 0:02:06.5]} 19... Qc7
{[%clk 0:02:27.4]} 20. Rc1 {[%clk 0:02:00.4]} 20... Qb8 {[%clk 0:02:19.1]} 21.
Ba2 {[%clk 0:01:51.9]} 21... Bd5 {[%clk 0:02:01.6]} 22. Nxd5 {[%clk 0:01:46.5]}
22... exd5 {[%clk 0:02:02.5]} 23. Rce1 {[%clk 0:01:43.6]} 23... Bf8 {[%clk
0:01:53.5]} 24. Rxe8 {[%clk 0:01:40.2]} 24... Nxe8 {[%clk 0:01:51.9]} 25. Bxf8
{[%clk 0:01:38.8]} 25... Kxf8 {[%clk 0:01:50.2]} 26. Ne5 {[%clk 0:01:32.5]}
26... Qc7 {[%clk 0:01:37]} 27. Qf3 {[%clk 0:01:15.3]} 27... Rd8 {[%clk
0:01:22.7]} 28. Bxc4 {[%clk 0:00:59]} 28... dxc4 {[%clk 0:01:23.6]} 29. Qf4
{[%clk 0:00:59]} 29... Kg8 {[%clk 0:01:18.9]} 30. Rc1 {[%clk 0:00:54.2]} 30...
Nd6 {[%clk 0:01:18.4]} 31. Rc3 {[%clk 0:00:43.5]} 31... b5 {[%clk 0:01:12.2]}
32. h4 {[%clk 0:00:38.7]} 32... Nf5 {[%clk 0:01:09.5]} 33. Nxg6 {[%clk
0:00:36.8]} 33... Qxf4 {[%clk 0:01:08.5]} 34. Nxf4 {[%clk 0:00:37]} 34... Rxd4
{[%clk 0:01:09.2]} 35. g3 {[%clk 0:00:36.4]} 35... Nxh4 {[%clk 0:01:05.2]} 36.
Re3 {[%clk 0:00:33.6]} 36... Ng6 {[%clk 0:00:47.3]} 37. Nxg6 {[%clk 0:00:23.9]}
37... hxg6 {[%clk 0:00:48.2]} 38. Re7 {[%clk 0:00:23.2]} 38... Rd2 {[%clk
0:00:44.7]} 39. Rxa7 {[%clk 0:00:22.8]} 39... Rxb2 {[%clk 0:00:44.8]} 40. Rc7
{[%clk 0:00:21.8]} 40... Rb3 {[%clk 0:00:44.8]} 41. a4 {[%clk 0:00:21.2]} 41...
bxa4 {[%clk 0:00:41.3]} 42. Rxc4 {[%clk 0:00:21.5]} 42... a3 {[%clk 0:00:42]}
43. Ra4 {[%clk 0:00:21.6]} 43... Kg7 {[%clk 0:00:42]} 44. Ra6 {[%clk 0:00:20.8]}
44... Kh6 {[%clk 0:00:40.9]} 45. Kg2 {[%clk 0:00:19.9]} 45... Kg5 {[%clk
0:00:41.5]} 46. Ra5+ {[%clk 0:00:19]} 46... Kf6 {[%clk 0:00:41.6]} 47. f4 {[%clk
0:00:17.6]} 47... Ke6 {[%clk 0:00:41.6]} 48. Kh3 {[%clk 0:00:16.5]} 48... Kd6
{[%clk 0:00:37.4]} 49. Kh4 {[%clk 0:00:13]} 49... Kc6 {[%clk 0:00:35.4]} 50. g4
{[%clk 0:00:13.3]} 50... Kb6 {[%clk 0:00:30.8]} 51. Ra8 {[%clk 0:00:13.1]} 51...
Kc5 {[%clk 0:00:28.9]} 52. Kg5 {[%clk 0:00:11.1]} 52... Rf3 {[%clk 0:00:27.7]}
53. f5 {[%clk 0:00:10.1]} 53... gxf5 {[%clk 0:00:27.6]} 54. gxf5 {[%clk
0:00:11]} 54... Kb4 {[%clk 0:00:26.9]} 55. Ra7 {[%clk 0:00:08.1]} 55... Kb3
{[%clk 0:00:20.3]} 56. Rxf7 {[%clk 0:00:07.4]} 56... a2 {[%clk 0:00:20.9]} 57.
Ra7 {[%clk 0:00:07.1]} 57... Kb2 {[%clk 0:00:21.1]} 58. Rxa2+ {[%clk 0:00:05.9]}
58... Kxa2 {[%clk 0:00:21.4]} 59. f6 {[%clk 0:00:06.6]} 59... Kb3 {[%clk
0:00:21.2]} 60. Kg6 {[%clk 0:00:07.2]} 60... Kc4 {[%clk 0:00:20.8]} 61. f7
{[%clk 0:00:07.8]} 61... Kd5 {[%clk 0:00:21.1]} 62. Kg7 {[%clk 0:00:08.3]} 62...
Rg3+ {[%clk 0:00:20.2]} 63. Kh7 {[%clk 0:00:08.6]} 63... Rh3+ {[%clk 0:00:19.8]}
64. Kg7 {[%clk 0:00:08.9]} 64... Rg3+ {[%clk 0:00:20.4]} 65. Kh7 {[%clk
0:00:09]} 65... Rf3 {[%clk 0:00:19.4]} 66. Kg7 {[%clk 0:00:09.2]} 66... Ke6
{[%clk 0:00:19.1]} 67. f8=Q {[%clk 0:00:08.5]} 67... Rxf8 {[%clk 0:00:20]} 68.
Kxf8 {[%clk 0:00:08.4]} 1/2-1/2

[Event "Late-Titled-Tuesday-Blitz-June-25-2024"]
[Site "Chess.com"]
[Date "2024.06.25"]
[Round "1"]
[White "MyDream003"]
[Black "stasOR4ik"]
[Result "1-0"]
[WhiteElo "2787"]
[BlackElo "2454"]
[TimeControl "180+1"]
[EndTime "14:08:17 PDT"]
[Termination "MyDream003 won on time"]

1. e4 {[%clk 0:03:00]} 1... c6 {[%clk 0:03:00.1]} 2. d4 {[%clk 0:02:58.7]} 2...
d5 {[%clk 0:03:01]} 3. e5 {[%clk 0:02:58.9]} 3... c5 {[%clk 0:03:01.3]} 4. Nf3
{[%clk 0:02:59]} 4... Bg4 {[%clk 0:03:01.2]} 5. dxc5 {[%clk 0:02:57.5]} 5... e6
{[%clk 0:02:57.9]} 6. Be3 {[%clk 0:02:56.3]} 6... Bxf3 {[%clk 0:02:56.6]} 7.
Qxf3 {[%clk 0:02:55.8]} 7... Nd7 {[%clk 0:02:56.8]} 8. Qg3 {[%clk 0:02:44]} 8...
Ne7 {[%clk 0:02:54.3]} 9. Bd3 {[%clk 0:02:42.2]} 9... Nc6 {[%clk 0:02:45.4]} 10.
f4 {[%clk 0:02:41.3]} 10... d4 {[%clk 0:02:44]} 11. Bf2 {[%clk 0:02:36.2]} 11...
Nxc5 {[%clk 0:02:44.3]} 12. O-O {[%clk 0:02:35.8]} 12... Nxd3 {[%clk 0:02:31.1]}
13. cxd3 {[%clk 0:02:34.8]} 13... Qd5 {[%clk 0:02:18]} 14. Nd2 {[%clk
0:02:32.7]} 14... Bb4 {[%clk 0:02:15.4]} 15. Ne4 {[%clk 0:02:26.4]} 15... O-O-O
{[%clk 0:02:14.3]} 16. Rfc1 {[%clk 0:02:18.6]} 16... Kb8 {[%clk 0:02:13.9]} 17.
a3 {[%clk 0:02:17.4]} 17... Be7 {[%clk 0:02:12.5]} 18. b4 {[%clk 0:02:16.9]}
18... f5 {[%clk 0:02:11.7]} 19. Nc5 {[%clk 0:02:00.2]} 19... g5 {[%clk
0:02:07.2]} 20. fxg5 {[%clk 0:01:50]} 20... Nxe5 {[%clk 0:02:06.7]} 21. Re1
{[%clk 0:01:11.3]} 21... Bd6 {[%clk 0:02:03.1]} 22. Qh4 {[%clk 0:01:11.3]} 22...
Bxc5 {[%clk 0:01:44.8]} 23. Rxe5 {[%clk 0:01:09.8]} 23... Qxe5 {[%clk
0:01:09.6]} 24. Bg3 {[%clk 0:01:09.4]} 24... Qxg3 {[%clk 0:01:10.3]} 25. Qxg3+
{[%clk 0:01:06.5]} 25... Bd6 {[%clk 0:01:10.9]} 26. Qh4 {[%clk 0:00:51.6]} 26...
e5 {[%clk 0:01:10.5]} 27. Rf1 {[%clk 0:00:51]} 27... Rdf8 {[%clk 0:01:03.7]} 28.
Qh6 {[%clk 0:00:50.1]} 28... Bc7 {[%clk 0:00:55.9]} 29. Qe6 {[%clk 0:00:42.4]}
29... f4 {[%clk 0:00:55.5]} 30. Rc1 {[%clk 0:00:33.2]} 30... Re8 {[%clk
0:00:52.7]} 31. Qf7 {[%clk 0:00:28.4]} 31... Bb6 {[%clk 0:00:52.5]} 32. a4
{[%clk 0:00:25.8]} 32... a6 {[%clk 0:00:51.6]} 33. a5 {[%clk 0:00:25.9]} 33...
Bd8 {[%clk 0:00:37.7]} 34. Qd7 {[%clk 0:00:23.4]} 34... Bxg5 {[%clk 0:00:30.3]}
35. Rc7 {[%clk 0:00:19.1]} 35... Re7 {[%clk 0:00:30.8]} 36. Rxb7+ {[%clk
0:00:15.5]} 36... Ka8 {[%clk 0:00:31]} 37. Ra7+ {[%clk 0:00:15.7]} 37... Kb8
{[%clk 0:00:31.6]} 38. Rb7+ {[%clk 0:00:14.6]} 38... Ka8 {[%clk 0:00:31.9]} 39.
Ra7+ {[%clk 0:00:07.6]} 39... Kb8 {[%clk 0:00:31.8]} 40. Qd6+ {[%clk 0:00:06.6]}
40... Kxa7 {[%clk 0:00:31.2]} 41. Qb6+ {[%clk 0:00:07.1]} 41... Ka8 {[%clk
0:00:31.4]} 42. Qxa6+ {[%clk 0:00:08]} 42... Kb8 {[%clk 0:00:31.7]} 43. Qd6+
{[%clk 0:00:08.1]} 43... Rc7 {[%clk 0:00:30.4]} 44. b5 {[%clk 0:00:08.1]} 44...
Kc8 {[%clk 0:00:14.9]} 45. Qe6+ {[%clk 0:00:08.2]} 45... Rd7 {[%clk 0:00:12.8]}
46. b6 {[%clk 0:00:07.3]} 46... Rd8 {[%clk 0:00:07]} 47. Qxe5 {[%clk 0:00:07.6]}
47... h6 {[%clk 0:00:06.1]} 48. a6 {[%clk 0:00:07.3]} 48... f3 {[%clk 0:00:06]}
49. gxf3 {[%clk 0:00:05]} 49... Be3+ {[%clk 0:00:05]} 50. Kf1 {[%clk 0:00:05.4]}
50... Rd6 {[%clk 0:00:03.8]} 51. Qc5+ {[%clk 0:00:04.4]} 51... Kd7 {[%clk
0:00:02.7]} 52. Qc7+ {[%clk 0:00:04.3]} 52... Ke6 {[%clk 0:00:03.1]} 53. b7
{[%clk 0:00:04.2]} 53... Rg8 {[%clk 0:00:01]} 54. Qc8+ {[%clk 0:00:03.4]} 1-0